bitfinex-derivatives/quotes_BTCF0:USTF0_20210102
["timestamp","ask_amount","ask_price","bid_price","bid_amount"]
[1609597140264,9.09591,31199.0,31198.0,0.21992417]
[1609597140463,8.9832,31199.0,31198.0,0.38417417]
[1609597141065,8.9832,31199.0,31198.0,0.20374259]
[1609597141264,8.9832,31199.0,31198.0,0.38417417]
[1609597143168,8.8137,31199.0,31198.0,0.38417417]
[1609597146571,8.8137,31199.0,31198.0,0.20374259]
[1609597147274,8.99413158,31199.0,31198.0,0.20374259]
[1609597149573,8.99413158,31199.0,31198.0,0.16225]
[1609597150074,8.99413158,31199.0,31187.0,0.15302]
[1609597150274,8.99413158,31199.0,31180.0,0.15026]
[1609597150474,8.99413158,31199.0,31188.0,0.03949317]
[1609597150674,8.99413158,31199.0,31188.0,0.20831317]
[1609597150875,8.99413158,31199.0,31188.0,0.16882]
[1609597151074,8.99413158,31199.0,31189.0,0.03949449]
[1609597151274,0.18043158,31190.0,31189.0,0.03949449]
[1609597152977,26.29850463,31199.0,31189.0,0.03949449]
[1609597153380,26.29850463,31199.0,31193.0,0.18043158]
[1609597153981,26.29850463,31199.0,31194.0,0.03950011]
[1609597154182,11.36660662,31199.0,31194.0,0.03950011]
[1609597154383,8.8137,31199.0,31194.0,0.03950011]
[1609597155285,0.18043158,31195.0,31189.0,0.03950015]
[1609597155685,0.18043158,31195.0,31188.0,0.16882]
[1609597155888,0.18043158,31195.0,31190.0,0.03950241]
[1609597156087,0.18043158,31195.0,31190.0,0.16053]
[1609597156489,0.18043158,31195.0,31191.0,0.0395027]
[1609597157593,26.60361248,31195.0,31191.0,0.0395027]
[1609597157991,8.8137,31191.0,31190.0,0.16053]
[1609597158488,8.8137,31191.0,31190.0,0.20003001]
[1609597159488,8.99413158,31191.0,31190.0,0.20003001]
[1609597159687,9.12600158,31191.0,31107.0,0.1771]
[1609597160089,9.12600158,31191.0,31080.0,0.11736125]
[1609597160489,9.12600158,31191.0,31080.0,0.23518415]
[1609597160891,9.12600158,31191.0,31175.0,0.03]
[1609597161491,0.18043158,31176.0,31035.0,0.15553]
[1609597161691,0.18043158,31176.0,31175.0,0.03953326]
[1609597162091,0.18043158,31176.0,31036.0,0.03953547]
[1609597162292,0.18043158,31176.0,31175.0,0.03953297]
[1609597162493,0.18043158,31176.0,31036.0,0.03953319]
[1609597162494,6.22066472,31163.0,31036.0,0.03953319]
[1609597162892,6.22066472,31163.0,31035.0,0.15553]
[1609597163093,6.22066472,31163.0,31037.0,0.03953388]
[1609597163293,6.22066472,31163.0,31037.0,0.03915772]
[1609597163494,6.22066472,31163.0,31159.0,0.18043158]
[1609597163894,6.22066472,31163.0,31160.0,0.03953187]
[1609597165193,3.04629527,31163.0,31160.0,0.03953187]
[1609597166197,17.50549768,31164.0,31160.0,0.03953187]
[1609597166395,17.50549768,31164.0,31159.0,0.18043158]
[1609597166895,14.94988452,31161.0,31159.0,0.18043158]
[1609597167495,0.18043158,31160.0,31159.0,0.18043158]
[1609597167695,20.32710875,31160.0,31159.0,0.18043158]
[1609597167895,20.48910875,31160.0,31159.0,0.18080582]
[1609597168797,20.48910875,31160.0,31159.0,0.00037424]
[1609597169198,20.48910875,31160.0,31006.0,0.07831903]
[1609597169199,20.48910875,31160.0,31006.0,0.03953372]
[1609597169398,20.48910875,31160.0,31157.0,0.18043158]
[1609597169797,20.48910875,31160.0,31158.0,0.00037426]
[1609597170198,0.34243158,31160.0,31158.0,0.00037426]
[1609597171105,19.47964258,31160.0,31020.0,0.5304]
[1609597171303,19.47964258,31160.0,31020.0,0.56993332]
[1609597171500,19.299211,31160.0,31152.0,0.18043158]
[1609597171901,19.299211,31160.0,31153.0,0.00037333]
[1609597172303,17.92108072,31159.0,31152.0,0.18043158]
[1609597172698,14.87664426,31154.0,31152.0,0.18005825]
[1609597172898,14.87664426,31154.0,31020.0,0.5304]
[1609597173098,14.87664426,31154.0,31107.0,0.1771]
[1609597173298,14.87664426,31154.0,31020.0,1.0635]
[1609597173509,14.87664426,31154.0,31146.0,0.18043158]
[1609597173906,25.94109126,31153.0,31146.0,0.18043158]
[1609597174107,8.8137,31150.0,31147.0,0.00037241]
[1609597174308,8.96553,31150.0,31147.0,0.00037241]
[1609597174507,8.96553,31150.0,31021.0,0.07833348]
[1609597174904,8.96553,31150.0,31021.0,0.03954055]
[1609597175101,25.88354045,31149.0,31022.0,0.03953997]
[1609597175403,25.88354045,31149.0,31137.0,0.18043158]
[1609597176004,25.84961034,31146.0,31138.0,0.0395398]
[1609597176404,25.84961034,31146.0,31021.0,0.0395392]
[1609597176804,25.84961034,31146.0,31139.0,0.03953963]
[1609597177005,25.84961034,31146.0,31022.0,0.03953983]
[1609597177207,25.84961034,31146.0,31140.0,0.03954305]
[1609597177405,0.18043158,31141.0,31140.0,0.03954305]
[1609597177605,0.18043158,31141.0,31138.0,0.18043158]
[1609597178005,0.18043158,31141.0,31139.0,0.03954244]
[1609597178405,25.84961034,31146.0,31139.0,0.03954244]
[1609597179406,25.84961034,31146.0,31145.0,0.18043158]
[1609597180006,3.19542487,31147.0,31145.0,0.21996943]
[1609597180407,3.19542487,31147.0,31146.0,0.03953634]
[1609597181208,1.34332487,31147.0,31146.0,0.03953634]
[1609597181409,8.96553,31150.0,31146.0,0.04953634]
[1609597181810,8.96553,31150.0,31147.0,0.03953166]
[1609597182811,8.96553,31150.0,31148.0,0.03952968]
[1609597183211,8.96553,31150.0,31147.0,0.03952947]
[1609597183413,8.96553,31150.0,31149.0,0.03952794]
[1609597183612,8.96553,31150.0,31149.0,0.18080248]
[1609597183813,8.96553,31150.0,31149.0,0.18043158]
[1609597184012,8.96553,31150.0,31149.0,0.21995992]
[1609597184213,8.79343,31150.0,31149.0,0.21995992]
[1609597190622,9.80956842,31140.0,31021.0,0.07831967]
[1609597190822,9.80956842,31140.0,31020.0,1.0635]
[1609597191223,9.80956842,31140.0,31021.0,0.03952686]
[1609597191623,9.80956842,31140.0,31139.0,0.18043158]
[1609597191823,9.80956842,31140.0,31021.0,0.03952686]
[1609597192025,9.95868842,31140.0,31139.0,0.03952822]
[1609597192229,9.95868842,31140.0,31021.0,0.03952583]
[1609597192427,9.95868842,31140.0,31139.0,0.03952742]
[1609597192727,9.95868842,31140.0,31022.0,0.03952737]
[1609597193127,9.95868842,31140.0,31139.0,0.03952721]
[1609597193328,9.95868842,31140.0,31023.0,0.03952731]
[1609597193528,9.95868842,31140.0,31021.0,0.03952678]
[1609597193727,9.95868842,31140.0,31139.0,0.18043158]
[1609597193927,9.95868842,31140.0,31024.0,0.03952592]
[1609597194127,9.95868842,31140.0,31139.0,0.0395258]
[1609597194328,9.95868842,31140.0,31025.0,0.03952607]
[1609597194627,9.95868842,31140.0,31139.0,0.0395262]
[1609597194829,9.95868842,31140.0,31026.0,0.03952616]
[1609597195229,9.95868842,31140.0,31021.0,0.03952606]
[1609597195429,9.95868842,31140.0,31027.0,0.03952594]
[1609597195629,9.95868842,31140.0,31139.0,0.18043158]
[1609597195829,9.95868842,31140.0,31022.0,0.03952588]
[1609597195830,9.12428842,31140.0,31022.0,0.03952588]
[1609597196031,9.12428842,31140.0,31139.0,0.03952603]
[1609597196231,9.12428842,31140.0,31023.0,0.03952603]
[1609597196431,9.12428842,31140.0,31139.0,0.03952651]
[1609597196832,9.12428842,31140.0,31021.0,0.03952698]
[1609597197037,9.12428842,31140.0,31139.0,0.0395268]
[1609597197235,9.12428842,31140.0,31022.0,0.03952717]
[1609597197639,9.12428842,31140.0,31139.0,0.21995888]
[1609597197840,9.12428842,31140.0,31023.0,0.03952757]
[1609597198042,9.12428842,31140.0,31139.0,0.03952826]
[1609597198238,9.12428842,31140.0,31020.0,1.0635]
[1609597198637,9.12428842,31140.0,31021.0,0.0395329]
[1609597199637,9.12428842,31140.0,31136.0,0.18043158]
[1609597199839,9.12428842,31140.0,31021.0,0.0395329]
[1609597200041,9.12428842,31140.0,31137.0,0.03953229]
[1609597200241,10.0,31100.0,31020.0,1.0635]
[1609597200442,10.0,31100.0,31021.0,0.07833428]
[1609597200642,10.0,31100.0,31022.0,1.7836]
[1609597201245,10.0,31100.0,31023.0,0.11786624]
[1609597201545,10.0,31100.0,31024.0,1.7836]
[1609597201746,10.0,31100.0,31099.0,0.18043158]
[1609597201945,9.1212,31100.0,31099.0,0.18043158]
[1609597202145,9.1212,31100.0,31099.0,0.03952942]
[1609597202345,9.1212,31100.0,31025.0,0.11786114]
[1609597202547,9.25649,31100.0,31025.0,0.11786114]
[1609597202744,9.25649,31100.0,31099.0,0.03952913]
[1609597202945,9.25649,31100.0,31026.0,1.82312846]
[1609597203146,9.25649,31100.0,31027.0,0.11784943]
[1609597203648,9.25649,31100.0,31099.0,0.18043158]
[1609597203848,9.25649,31100.0,31027.0,0.11784943]
[1609597204048,9.15649,31100.0,31099.0,0.03952546]
[1609597204248,9.15649,31100.0,31028.0,0.03952291]
[1609597204448,9.15649,31100.0,31099.0,0.03951118]
[1609597204847,9.15649,31100.0,31027.0,0.11783446]
[1609597205050,9.15649,31100.0,31099.0,0.03950737]
[1609597205249,9.15649,31100.0,31021.0,0.07827593]
[1609597205548,9.15649,31100.0,31021.0,0.03950533]
[1609597205750,9.15649,31100.0,31099.0,0.18043158]
[1609597205950,8.96299,31100.0,31064.0,0.5331]
[1609597206151,8.96299,31100.0,31099.0,0.03950744]
[1609597206351,8.96299,31100.0,31065.0,0.0395061]
[1609597206651,8.96299,31100.0,31099.0,0.03950408]
[1609597206853,8.96299,31100.0,31066.0,0.03950303]
[1609597207051,8.96299,31100.0,31064.0,0.72880025]
[1609597207251,8.80099,31100.0,31064.0,0.5331]
[1609597207451,8.80099,31100.0,31067.0,0.03950045]
[1609597207653,8.80099,31100.0,31099.0,0.18043158]
[1609597207851,8.80099,31100.0,31064.0,0.03950021]
[1609597208051,8.80099,31100.0,31063.0,3.42849795]
[1609597208052,8.80099,31100.0,31068.0,0.03950475]
[1609597208252,8.80099,31100.0,31064.0,0.03950203]
[1609597208452,8.80099,31100.0,31069.0,0.03950325]
[1609597208751,8.80099,31100.0,31064.0,0.03950331]
[1609597208952,8.70099,31100.0,31064.0,0.03950331]
[1609597209153,8.70099,31100.0,31070.0,0.03950207]
[1609597209353,8.70099,31100.0,31063.0,3.42849795]
[1609597209554,8.70099,31100.0,31071.0,0.03950166]
[1609597209754,8.70099,31100.0,31063.0,3.42849795]
[1609597209755,8.70099,31100.0,31099.0,0.18043158]
[1609597209955,8.70099,31100.0,31063.0,3.42849795]
[1609597210156,8.70099,31100.0,31099.0,0.0395009]
[1609597210354,8.70099,31100.0,31064.0,0.03950054]
[1609597210654,8.70099,31100.0,31099.0,0.03950042]
[1609597210854,8.70099,31100.0,31063.0,3.42849795]
[1609597211257,8.70099,31100.0,31064.0,0.03951129]
[1609597211757,8.70099,31100.0,31099.0,0.18043158]
[1609597212157,8.70099,31100.0,31064.0,0.03951129]
[1609597212357,8.70099,31100.0,31099.0,0.03951586]
[1609597212757,8.70099,31100.0,31063.0,3.42849795]
[1609597212758,8.70099,31100.0,31064.0,0.03951836]
[1609597213658,8.70099,31100.0,31099.0,0.18043158]
[1609597213858,8.70099,31100.0,31064.0,0.03951836]
[1609597214058,8.70099,31100.0,31099.0,0.03951657]
[1609597214461,8.70099,31100.0,31064.0,0.03951613]
[1609597214661,8.70099,31100.0,31099.0,0.03951628]
[1609597214862,8.70099,31100.0,31099.0,0.00036561]
[1609597215061,8.70099,31100.0,31087.0,4.04136658]
[1609597215263,8.70099,31100.0,31099.0,0.03951726]
[1609597215461,8.70099,31100.0,31074.0,4.23381261]
[1609597215663,8.70099,31100.0,31099.0,0.21994807]
[1609597215862,8.70099,31100.0,31088.0,0.19575912]
[1609597216064,8.70099,31100.0,31075.0,0.1957604]
[1609597216262,8.70099,31100.0,31089.0,0.03952004]
[1609597216663,8.70099,31100.0,31075.0,0.23528219]
[1609597216865,8.70099,31100.0,31090.0,0.03952273]
[1609597217064,8.70099,31100.0,31076.0,0.03952412]
[1609597217465,8.70099,31100.0,31091.0,0.03953654]
[1609597217666,8.70099,31100.0,31075.0,0.1957604]
[1609597217868,8.70099,31100.0,31099.0,0.18043158]
[1609597218066,8.70099,31100.0,31076.0,0.1771]
[1609597218267,8.70099,31100.0,31099.0,0.03953751]
[1609597218467,8.70099,31100.0,31076.0,0.0395388]
[1609597218668,8.70099,31100.0,31077.0,0.03953885]
[1609597219268,8.70099,31100.0,31061.0,0.0395394]
[1609597219668,8.70099,31100.0,31099.0,0.18043158]
[1609597219868,8.70099,31100.0,31061.0,0.0395394]
[1609597221774,8.70099,31100.0,31087.0,0.18043158]
[1609597221972,8.70099,31100.0,31061.0,0.0395394]
[1609597222171,8.70099,31100.0,31088.0,0.03954432]
[1609597222371,8.70099,31100.0,31062.0,0.03954572]
[1609597222571,8.70099,31100.0,31060.0,0.356]
[1609597222771,8.70099,31100.0,31063.0,0.03954655]
[1609597222972,8.70099,31100.0,31061.0,0.03954699]
[1609597223172,8.70099,31100.0,31064.0,0.03954624]
[1609597223473,8.70099,31100.0,31062.0,0.03954653]
[1609597223872,8.70099,31100.0,31071.0,0.18043158]
[1609597224271,8.70099,31100.0,31072.0,0.03954203]
[1609597225772,0.18043158,31073.0,31072.0,0.03954203]
[1609597225971,0.33773158,31073.0,31072.0,0.03954203]
[1609597230977,8.70099,31100.0,31072.0,0.03954203]
[1609597231179,0.13256,31073.0,31072.0,0.03954203]
[1609597231781,8.79473684,31070.0,31043.0,0.11112]
[1609597232180,8.79473684,31070.0,31044.0,0.03954824]
[1609597232380,8.20923684,31070.0,31044.0,0.03954824]
[1609597233782,8.20923684,31070.0,31069.0,0.18043158]
[1609597234182,8.20923684,31070.0,31069.0,0.21997178]
[1609597235383,7.61913684,31070.0,31069.0,0.21997178]
[1609597237984,7.48657684,31070.0,31069.0,0.21997178]
[1609597238586,7.35401684,31070.0,31069.0,0.21997178]
[1609597239788,7.25401684,31070.0,31069.0,0.21997178]
[1609597244893,7.25401684,31070.0,31069.0,0.0395402]
[1609597245493,7.25401684,31070.0,31044.0,0.03955073]
[1609597245692,7.25401684,31070.0,31043.0,0.11112]
[1609597245693,7.25401684,31070.0,31069.0,0.03955414]
[1609597245893,7.43444842,31070.0,31069.0,0.03919275]
[1609597246093,7.43444842,31070.0,31053.0,0.18043158]
[1609597246294,7.43444842,31070.0,31054.0,0.03955995]
[1609597246494,7.43444842,31070.0,31053.0,0.18043158]
[1609597247896,0.18043158,31054.0,31053.0,0.18043158]
[1609597248097,0.18043158,31054.0,31053.0,0.21999713]
[1609597248296,0.18043158,31054.0,31053.0,0.03956555]
[1609597248697,0.18043158,31054.0,31044.0,0.03956913]
[1609597248897,0.18043158,31054.0,31053.0,0.03956703]
[1609597249297,0.18043158,31054.0,31050.0,0.17363]
[1609597249497,0.18043158,31054.0,31053.0,0.03957012]
[1609597249697,0.18043158,31054.0,31051.0,0.03957052]
[1609597250098,0.18043158,31054.0,31053.0,0.03956923]
[1609597250298,0.18043158,31054.0,31052.0,0.03957007]
[1609597250500,0.18043158,31054.0,31053.0,0.0395701]
[1609597251100,0.18043158,31054.0,31051.0,0.03957038]
[1609597251301,0.18043158,31054.0,31053.0,0.03957093]
[1609597251701,0.18043158,31054.0,31052.0,0.03957552]
[1609597251901,0.18043158,31054.0,31053.0,0.03957784]
[1609597252101,0.18043158,31054.0,31045.0,0.03957775]
[1609597252503,0.18043158,31054.0,31053.0,0.03957997]
[1609597252703,0.18043158,31054.0,31046.0,0.03958011]
[1609597252902,0.18043158,31054.0,31045.0,0.03958014]
[1609597253302,0.18043158,31054.0,31047.0,0.03958569]
[1609597253502,0.18043158,31054.0,31046.0,0.0395883]
[1609597253703,0.17349,31056.0,31048.0,0.03958732]
[1609597253902,0.18043158,31054.0,31052.0,0.18043158]
[1609597254103,0.13842,31063.0,31052.0,0.18043158]
[1609597254302,0.13842,31063.0,31053.0,0.03958299]
[1609597254502,7.28401684,31070.0,31053.0,0.03958299]
[1609597255904,7.28401684,31070.0,31069.0,0.18043158]
[1609597256504,7.28401684,31070.0,31069.0,0.2199978]
[1609597258807,7.28401684,31070.0,31069.0,0.03956622]
[1609597259409,7.28401684,31070.0,31050.0,0.15008]
[1609597259410,7.28401684,31070.0,31051.0,0.03956137]
[1609597259615,7.28401684,31070.0,31069.0,0.03956247]
[1609597260016,7.46444842,31070.0,31052.0,0.21999791]
[1609597260211,7.46444842,31070.0,31069.0,0.03956613]
[1609597260412,7.46444842,31070.0,31053.0,0.03956574]
[1609597260814,7.46444842,31070.0,31069.0,0.03956587]
[1609597261016,7.46444842,31070.0,31054.0,0.03956746]
[1609597261216,7.46444842,31070.0,31069.0,0.03956728]
[1609597261515,7.46444842,31070.0,31055.0,0.03956712]
[1609597261714,7.46444842,31070.0,31069.0,0.03956743]
[1609597262114,7.46444842,31070.0,31066.0,0.18043158]
[1609597262314,7.46444842,31070.0,31069.0,0.03956404]
[1609597262716,7.46444842,31070.0,31067.0,0.03956287]
[1609597262914,7.46444842,31070.0,31069.0,0.03956255]
[1609597263114,7.46444842,31070.0,31068.0,0.0395641]
[1609597263514,7.46444842,31070.0,31066.0,0.18043158]
[1609597263515,7.46444842,31070.0,31069.0,0.03956421]
[1609597263714,7.28401684,31070.0,31069.0,0.03956421]
[1609597263915,7.28401684,31070.0,31067.0,0.03956337]
[1609597264215,7.28401684,31070.0,31067.0,0.03956331]
[1609597264414,7.28401684,31070.0,31066.0,0.18043158]
[1609597270020,0.18043158,31067.0,31066.0,0.18043158]
[1609597270421,0.18043158,31067.0,31066.0,0.22000151]
[1609597271421,7.28401684,31070.0,31066.0,0.22000151]
[1609597271825,7.28401684,31070.0,31066.0,0.03956993]
[1609597272023,7.28401684,31070.0,31067.0,0.21999611]
[1609597272624,7.28401684,31070.0,31068.0,0.03956304]
[1609597274025,0.18043158,31069.0,31068.0,0.03956304]
[1609597274226,0.18043158,31069.0,31065.0,0.18043158]
[1609597274426,0.18043158,31069.0,31068.0,0.03956182]
[1609597274626,0.18043158,31069.0,31066.0,0.03956093]
[1609597274826,7.28401684,31070.0,31066.0,0.03956093]
[1609597275027,7.28401684,31070.0,31068.0,0.0395616]
[1609597275227,7.28401684,31070.0,31067.0,0.03947967]
[1609597275427,7.28401684,31070.0,31066.0,0.03947989]
[1609597275827,7.28401684,31070.0,31068.0,0.03948281]
[1609597276027,0.18043158,31069.0,31067.0,0.03949059]
[1609597276229,0.18043158,31069.0,31061.0,0.03949414]
[1609597276529,0.18043158,31069.0,31068.0,0.03949503]
[1609597276727,0.18043158,31069.0,31062.0,0.03949569]
[1609597277130,0.18043158,31069.0,31051.0,0.03949418]
[1609597277329,0.18043158,31069.0,31063.0,0.03418368]
[1609597277531,0.18043158,31069.0,31052.0,0.03418385]
[1609597277831,0.18043158,31069.0,31051.0,0.03418197]
[1609597278031,0.18043158,31069.0,31068.0,0.18043158]
[1609597278431,0.18043158,31069.0,31068.0,0.2146126]
[1609597278833,7.28401684,31070.0,31068.0,0.2146126]
[1609597279233,7.28401684,31070.0,31069.0,0.03417176]
[1609597280334,7.18401684,31070.0,31069.0,0.03417176]
[1609597281536,7.15401684,31070.0,31069.0,0.03417176]
[1609597283439,7.15401684,31070.0,31051.0,0.03417823]
[1609597283838,7.15401684,31070.0,31069.0,0.03417914]
[1609597284040,7.33444842,31070.0,31060.0,0.18043158]
[1609597284237,7.33444842,31070.0,31069.0,0.0341764]
[1609597284640,7.36444842,31070.0,31061.0,0.03417491]
[1609597284840,7.36444842,31070.0,31069.0,0.03417168]
[1609597285041,7.36444842,31070.0,31062.0,0.03417214]
[1609597285441,7.36444842,31070.0,31069.0,0.03417094]
[1609597285642,7.36444842,31070.0,31063.0,0.03417296]
[1609597285843,7.36444842,31070.0,31051.0,0.03417449]
[1609597286042,7.18401684,31070.0,31051.0,0.03417449]
[1609597286242,7.18401684,31070.0,31064.0,0.03417357]
[1609597286441,7.18401684,31070.0,31052.0,0.03417279]
[1609597286644,7.18401684,31070.0,31065.0,0.03417718]
[1609597286942,7.18401684,31070.0,31053.0,0.03417984]
[1609597287342,7.18401684,31070.0,31066.0,0.03417954]
[1609597287542,7.18401684,31070.0,31051.0,0.03418058]
[1609597287742,7.18401684,31070.0,31067.0,0.03418015]
[1609597287942,0.18043158,31068.0,31052.0,0.03418131]
[1609597288242,0.18043158,31068.0,31050.0,0.33051158]
[1609597288644,0.18043158,31068.0,31053.0,0.03418696]
[1609597288844,0.18043158,31068.0,31051.0,0.03418592]
[1609597290048,0.18043158,31052.0,31051.0,0.03418592]
[1609597293348,0.18043158,31052.0,31051.0,0.03419512]
[1609597293551,0.02,31051.0,31050.0,0.15008]
[1609597293949,0.02,31051.0,31050.0,0.03419551]
[1609597294549,0.02,31051.0,31050.0,0.03419768]
[1609597294749,0.02,31051.0,31035.0,0.32468158]
[1609597294950,0.02,31051.0,31044.0,0.03418865]
[1609597295350,0.02,31051.0,31044.0,0.14228]
[1609597295551,0.02,31051.0,31045.0,0.03418856]
[1609597295951,0.02,31051.0,31050.0,0.18043158]
[1609597296451,0.02,31051.0,31050.0,0.21461951]
[1609597297958,0.20043158,31051.0,31050.0,0.21461951]
[1609597298158,0.20043158,31051.0,31050.0,0.03418793]
[1609597298758,0.20043158,31051.0,31045.0,0.03418866]
[1609597300060,0.02,31051.0,31049.0,0.18043158]
[1609597300560,0.02,31051.0,31050.0,0.03418569]
[1609597300960,0.16012,31064.0,31050.0,0.03418569]
[1609597301361,7.18401684,31070.0,31050.0,0.03418569]
[1609597301961,0.18043158,31051.0,31050.0,0.03418569]
[1609597302162,0.18043158,31051.0,31045.0,0.21461918]
[1609597302561,0.18043158,31051.0,31050.0,0.03418799]
[1609597302762,0.18043158,31051.0,31046.0,0.03418875]
[1609597302962,0.18043158,31051.0,31050.0,0.03419023]
[1609597303262,0.18043158,31051.0,31047.0,0.03419236]
[1609597303664,7.18401684,31070.0,31050.0,0.03419151]
[1609597303863,7.18401684,31070.0,31046.0,0.03418765]
[1609597304065,7.18401684,31070.0,31051.0,0.03418754]
[1609597304263,7.18401684,31070.0,31051.0,0.17925754]
[1609597304463,7.18401684,31070.0,31051.0,0.14507]
[1609597304664,7.18401684,31070.0,31052.0,0.03418639]
[1609597306066,0.18043158,31053.0,31052.0,0.03418639]
[1609597312077,0.18043158,31053.0,31052.0,0.21461797]
[1609597312277,0.18043158,31053.0,31052.0,0.03418639]
[1609597315478,0.11999,31065.0,31052.0,0.03418639]
[1609597315678,0.02,31067.0,31052.0,0.03418639]
[1609597316080,0.02,31067.0,31066.0,0.18043158]
[1609597316778,0.02,31067.0,31066.0,0.21461299]
[1609597317779,0.02,31067.0,31066.0,0.03418141]
[1609597317981,0.20043158,31067.0,31066.0,0.03418141]
[1609597318379,0.20043158,31067.0,31055.0,0.18043158]
[1609597318579,0.20043158,31067.0,31066.0,0.03418212]
[1609597318781,0.20043158,31067.0,31056.0,0.0341839]
[1609597319079,0.20043158,31067.0,31066.0,0.0341871]
[1609597319280,0.20043158,31067.0,31056.0,0.03418439]
[1609597319680,0.20043158,31067.0,31066.0,0.03418465]
[1609597319879,0.20043158,31067.0,31057.0,0.03418594]
[1609597320082,0.18043158,31058.0,31052.0,0.03418603]
[1609597320481,0.18043158,31058.0,31057.0,0.03418695]
[1609597320683,0.18043158,31058.0,31053.0,0.03380611]
[1609597320984,0.18043158,31058.0,31057.0,0.03381003]
[1609597321184,0.18043158,31058.0,31054.0,0.03381239]
[1609597321485,0.18043158,31058.0,31057.0,0.03381642]
[1609597321886,0.18043158,31058.0,31055.0,0.03382197]
[1609597322085,0.18043158,31058.0,31057.0,0.03382226]
[1609597322286,0.18043158,31058.0,31052.0,0.03382187]
[1609597322588,0.18043158,31058.0,31051.0,0.14507]
[1609597322589,0.18043158,31058.0,31057.0,0.03382557]
[1609597322786,0.18043158,31058.0,31053.0,0.03382075]
[1609597323086,0.18043158,31058.0,31057.0,0.03382066]
[1609597323386,0.18043158,31058.0,31054.0,0.03381954]
[1609597323588,0.18043158,31058.0,31057.0,0.03381929]
[1609597323987,0.18043158,31058.0,31052.0,0.03130402]
[1609597324188,0.18043158,31058.0,31057.0,0.03130598]
[1609597324389,0.18043158,31058.0,31053.0,0.03130676]
[1609597324690,0.18043158,31058.0,31054.0,0.03130646]
[1609597324889,0.18043158,31058.0,31051.0,0.14507]
[1609597325093,0.18043158,31058.0,31045.0,0.18043158]
[1609597325295,0.18043158,31058.0,31052.0,0.03130997]
[1609597325487,0.18043158,31058.0,31046.0,0.03130493]
[1609597325790,0.18043158,31058.0,31053.0,0.03130337]
[1609597326191,0.18043158,31054.0,31050.0,0.18043158]
[1609597326592,0.18043158,31054.0,31051.0,0.03130393]
[1609597327094,0.16199,31064.0,31051.0,0.03130393]
[1609597327293,0.02,31067.0,31051.0,0.03130393]
[1609597327895,0.02,31067.0,31045.0,0.03093983]
[1609597328095,0.18043158,31046.0,31045.0,0.03093983]
[1609597328295,0.18043158,31046.0,31044.0,0.48973356]
[1609597328496,0.18043158,31046.0,31045.0,0.03094275]
[1609597333200,0.18043158,31046.0,31045.0,0.03061462]
[1609597333399,0.18043158,31046.0,31045.0,0.03094613]
[1609597336106,0.02,31067.0,31045.0,0.03094613]
[1609597336506,7.15401684,31070.0,31045.0,0.03094613]
[1609597336507,4.09307684,31070.0,31045.0,0.03094613]
[1609597336708,2.71816684,31070.0,31045.0,0.03094613]
[1609597337007,0.0964,31069.0,31045.0,0.03094613]
[1609597337409,0.0964,31069.0,31063.0,4.07818655]
[1609597337708,0.0964,31069.0,31063.0,4.21437655]
[1609597337911,2.71816684,31070.0,31064.0,0.18078777]
[1609597338109,0.18043158,31065.0,31064.0,0.18078777]
[1609597343519,2.71816684,31070.0,31064.0,0.18078777]
[1609597344119,0.18043158,31065.0,31064.0,0.18078777]
[1609597344524,2.71816684,31070.0,31064.0,0.18078777]
[1609597344919,1.26475684,31070.0,31064.0,0.18078777]
[1609597345928,5.3112,31091.0,31064.0,0.18078777]
[1609597346124,0.18043158,31065.0,31064.0,0.18078777]
[1609597346336,0.18043158,31065.0,31064.0,0.35788777]
[1609597346528,5.3112,31091.0,31064.0,0.18078777]
[1609597346731,5.3112,31091.0,31064.0,0.35788777]
[1609597347326,5.3112,31091.0,31065.0,0.02883628]
[1609597347526,0.0976,31090.0,31065.0,0.02883628]
[1609597347827,5.3112,31091.0,31065.0,0.02883628]
[1609597348027,5.3112,31091.0,31085.0,3.89984059]
[1609597348229,0.18043158,31086.0,31085.0,4.00643059]
[1609597348429,0.92013158,31086.0,31085.0,4.00643059]
[1609597348829,0.92013158,31086.0,31085.0,4.18728409]
[1609597349230,0.92013158,31086.0,31085.0,2.18238409]
[1609597349432,0.92013158,31086.0,31085.0,2.08945517]
[1609597350333,0.92013158,31086.0,31085.0,1.80795517]
[1609597351634,0.92013158,31086.0,31085.0,1.28355517]
[1609597352435,1.92013158,31086.0,31076.0,4.09459949]
[1609597352835,1.92013158,31086.0,31077.0,0.02818059]
[1609597353035,1.92013158,31086.0,31077.0,0.15296059]
[1609597353236,1.92013158,31086.0,31076.0,4.09459949]
[1609597353237,1.92013158,31086.0,31076.0,2.99917949]
[1609597353436,1.18043158,31086.0,31077.0,0.17121]
[1609597353637,5.3938,31077.0,31063.0,0.13619]
[1609597353836,1.0,31076.0,31063.0,0.13619]
[1609597354037,1.0,31076.0,31030.0,4.46103425]
[1609597354239,5.15723158,31062.0,31020.0,0.1771]
[1609597354438,0.18043158,31062.0,31045.0,0.02784997]
[1609597354840,4.4626,31046.0,31045.0,0.11551]
[1609597355040,0.18043158,31062.0,31045.0,0.11551]
[1609597355240,4.8205,31059.0,31045.0,0.11551]
[1609597355440,0.18043158,31062.0,31045.0,0.11551]
[1609597355641,0.18043158,31062.0,31046.0,0.00032482]
[1609597355843,0.00373622,31075.0,31046.0,0.00032482]
[1609597356041,0.00373622,31075.0,31046.0,0.02784828]
[1609597356242,0.18043158,31047.0,31046.0,0.02784828]
[1609597356443,0.00373622,31075.0,31046.0,0.02784828]
[1609597356644,5.3856,31067.0,31046.0,0.02784828]
[1609597357442,0.01274877,31077.0,31046.0,0.02784828]
[1609597357644,5.2044,31069.0,31046.0,0.02784828]
[1609597357842,0.01274877,31077.0,31046.0,0.02784828]
[1609597358043,4.3943,31062.0,31046.0,0.02784828]
[1609597358245,0.18043158,31047.0,31046.0,0.02784828]
[1609597358444,1.00372436,31090.0,31046.0,0.02784828]
[1609597358652,1.00372436,31090.0,31046.0,0.02752346]
[1609597358844,4.2815,31088.0,31046.0,0.0278648]
[1609597359045,4.2815,31088.0,31046.0,0.02820614]
[1609597359345,5.2815,31088.0,31047.0,0.03532633]
[1609597359545,1.0,31088.0,31047.0,0.00034132]
[1609597359745,3.9735,31072.0,31047.0,0.00034132]
[1609597359946,3.9735,31072.0,31046.0,0.28588268]
[1609597360146,3.9735,31072.0,31047.0,0.00034138]
[1609597362051,0.00370176,31073.0,31047.0,0.00034138]
[1609597362252,0.18043158,31048.0,31047.0,0.00034138]
[1609597362452,0.00370176,31073.0,31047.0,0.00034138]
[1609597362653,3.7731,31065.0,31047.0,0.00034138]
[1609597363853,1.0,31064.0,31047.0,0.00034138]
[1609597364051,2.56865,31065.0,31047.0,0.00034138]
[1609597364254,0.18043158,31048.0,31047.0,0.00034138]
[1609597364854,2.56865,31065.0,31047.0,0.00034138]